Cogmind - Beta 17 @@@ ROGUE MODE // 2026.07.23 @ 17:43:39 Player: Trekki Result: Destroyed by Y-54 Guardian with Flak Gun Performance ------------- Evolutions (0) 0 Regions Visited (3) 600 Robots Destroyed (17) 85 Value Destroyed (196) 196 Prototype IDs (0) 0 Alien Tech Used (0) 0 Bonus (0) 0 TOTAL SCORE: 881 Bonus ------- None Cogmind --------- Core Integrity 0/250 Matter 178/300 Energy 193/250 System Corruption 0% Temperature Cool (22) Movement Rolling (110) Location -7/Recycling Parts ------- > --- POWER (1) -------- Ion Engine > --- PROPULSION (2) --- Aluminum Leg Subdweller Monowheel > --- UTILITY (2) ------ Small Storage Unit Improved Terrain Scanner > --- WEAPON (2) ------- Light Assault Rifle > --- INVENTORY (8) ---- Subdweller Power Source Medium Matter Pod (45) Peak State ------------ > --- POWER ------------ Ion Engine > --- PROPULSION ------- Aluminum Leg Aluminum Leg > --- UTILITY ---------- Small Storage Unit Improved Terrain Scanner > --- WEAPON ----------- Light Assault Rifle Light Assault Rifle > --- INVENTORY -------- Subdweller Power Source Wheel Wheel Subdweller Monowheel Medium Matter Pod Seismic Detector Assault Rifle Mining Laser [Rating: 10] Favorites ----------- Power Ion Engine Engine Ion Engine Propulsion Aluminum Leg Treads Light Treads Leg Aluminum Leg Wheel Wheel Utility Small Storage Unit Device Improved Terrain Scanner Storage Small Storage Unit Weapon Light Assault Rifle Ballistic Gun Light Assault Rifle Special Weapon Mining Laser Build | -11 -10 -10 -7 ------- Run | Yrd Mat Sub Rec Slots Evolved . | . . . . Power . | . . . . Propulsion . | . . . . Utility . | . . . . Weapon . | . . . . Parts Attached 17 | 9 . 8 . Power 2 | 1 . 1 . Engine 2 | 1 . 1 . Core . | . . . . Reactor . | . . . . Propulsion 8 | 4 . 4 . Treads 2 | 2 . . . Leg 3 | 2 . 1 . Wheel 3 | . . 3 . Hover . | . . . . Flight . | . . . . Utility 2 | 2 . . . Device 1 | 1 . . . Storage 1 | 1 . . . Processor . | . . . . Hackware . | . . . . Protection . | . . . . Artifact . | . . . . Weapon 5 | 2 . 3 . Energy Gun . | . . . . Energy Cannon . | . . . . Ballistic Gun 4 | 2 . 2 . Ballistic Cannon . | . . . . Launcher . | . . . . Special Weapon 1 | . . 1 . Impact Weapon . | . . . . Slashing Weapon . | . . . . Piercing Weapon . | . . . . Special Melee Weapon . | . . . . Unidentified Prototypes . | . . . . Parts Lost 9 | . . 5 4 Power 1 | . . 1 . Propulsion 4 | . . 3 1 Utility . | . . . . Weapon 4 | . . 1 3 Highest Loss Streak 7 | . . 3 7 To Critical Strikes . | . . . . Average Backups 7 | 6 7 7 4 Power . | . 1 . 1 Propulsion 3 | 3 2 2 1 Utility 1 | . 2 1 1 Weapon 1 | 1 2 2 1 Tool/Special . | . . . . Unused Backups 5 | 1 1 1 2 Power 1 | . . . 1 Propulsion 2 | 1 1 . . Utility 2 | . . 1 1 Weapon . | . . . . Tool/Special . | . . . . Average Slot Usage (%) 99 | . 100 97 100 Engine 13 | . 14 12 14 Leg 21 | . 28 10 21 Wheel 6 | . . 16 7 Device 14 | . 14 14 14 Storage 14 | . 14 14 14 Ballistic Gun 26 | . 28 23 24 Special Weapon 1 | . . 4 3 Peak Build Rating 10 | 9 9 10 10 Average Rating 8 | 7 9 9 8 On Entrance 6 | . 9 9 9 Avg Prop Armor Cover (%) . | . . . . Naked Turns . | . . . . Heaviest Build 14 | 14 14 14 13 Greatest Support 40 | 40 20 30 20 Greatest Overweight (x) 1 | . . 1 1 Average Overweight (x) . | . . . . Largest Inventory Capacity 8 | 8 8 8 8 Average Capacity 7 | 7 8 8 8 Most Carried 8 | 8 8 8 5 Average Carried 7 | 6 7 7 4 Final Capacity 8 | 8 8 8 8 Final Carried 8 | 8 8 6 2 Class Distribution -------------------- 100% | Mutant Dominant Class ---------------- Mutant | -10/Materials Mutant | -10/Subcaves Mutant | -7/Recycling Resources | -11 -10 -10 -7 ----------- Run | Yrd Mat Sub Rec Matter Collected 572 | 398 38 136 . Remotely . | . . . . Salvage Created 429 | 277 87 65 . Parts 37 | 25 4 8 . Haulers Intercepted . | . . . . Recyclers Shooed 1 | . 1 . . Parts Field Recycled . | . . . . Retrieved Matter . | . . . . Parts Self-Destructed 10 | . . 10 . Prevented . | . . . . Parts Restored . | . . . . Kills | -11 -10 -10 -7 ------- Run | Yrd Mat Sub Rec Combat Hostiles Destroyed 6 | . 2 4 . Guns 6 | . 2 4 . Classes Destroyed 6 | 3 1 2 . Worker 3 | 3 . . . Tunneler 7 | 7 . . . Recycler 1 | 1 . . . Swarmer 3 | . . 3 . Grunt 2 | . 2 . . Subdweller 1 | . . 1 . Best Kill Streak 3 | 3 2 3 . Combat Bots Only 3 | . 2 3 . Max Kills in Single Turn 1 | 1 1 1 . Gunslinging . | . . . . Exploded . | . . . . Melee . | . . . . Uniques/NPCs Destroyed . | . . . . Combat | -11 -10 -10 -7 -------- Run | Yrd Mat Sub Rec Hostile Shots Fired 157 | . 8 86 63 Missed 37 | . 1 15 21 Hits 120 | . 7 71 42 Projectile 120 | . 7 71 42 Damage Taken 1119 | . 80 759 280 Core 252 | . 35 179 38 Absorbed by Shields . | . . . . Core Remaining (%) 100 | 100 . . . Volleys Fired 75 | 27 13 29 6 Largest 2 | 2 2 2 2 Hottest 120 | 40 40 120 120 Shots Fired 135 | 54 26 43 12 Gun 119 | 54 26 28 11 Cannon . | . . . . Launcher . | . . . . Special 16 | . . 15 1 Kinetic 119 | 54 26 28 11 Thermal 16 | . . 15 1 Explosive . | . . . . Electromagnetic . | . . . . Robot Hit Streak 9 | 6 5 9 7 Robot Miss Streak 4 | 4 2 4 2 Penetration Max . | . . . . Secondary Targets . | . . . . Shots Hit Robots 68 | 26 16 18 8 Core Hits 28 | 14 4 7 3 Critical Kills . | . . . . Critical Parts Destroyed . | . . . . Critical Strikes . | . . . . Melee Attacks . | . . . . Impact . | . . . . Slashing . | . . . . Piercing . | . . . . Sneak Attacks . | . . . . Combat Hostiles . | . . . . Follow-up Attacks . | . . . . Damage Inflicted 688 | 279 161 173 75 Guns 616 | 279 161 125 51 Cannons . | . . . . Explosions . | . . . . Melee . | . . . . Ramming . | . . . . Kinetic 616 | 279 161 125 51 Thermal 72 | . . 48 24 Explosive . | . . . . Electromagnetic . | . . . . Impact . | . . . . Slashing . | . . . . Piercing . | . . . . Highest Corruption . | . . . . Average Corruption . | . . . . Corruption Purged . | . . . . Corruption Blocked . | . . . . Overload Shots . | . . . . Overflow Damage . | . . . . Projectiles . | . . . . Explosions . | . . . . Melee . | . . . . Knockbacks . | . . . . Impact . | . . . . Kinetic . | . . . . Secondary . | . . . . Self-Inflicted Damage . | . . . . Shots . | . . . . Rammed . | . . . . Targets Rammed . | . . . . Kicked . | . . . . Crushed . | . . . . Highest Temperature 18 | . 12 . 18 Average Temperature 10 | . 7 . 11 Received Heat Transfer 300 | . 42 174 84 Siege Activations . | . . . . Martial Activations . | . . . . Shielding Activations . | . . . . Robots Disrupted . | . . . . Combat Hostiles . | . . . . Robots Corrupted . | . . . . Combat Hostiles . | . . . . Parts Fried . | . . . . Impact Corruptions . | . . . . Robots Melted . | . . . . Combat Hostiles . | . . . . Parts Melted . | . . . . Heat Transferred 150 | . . 100 50 Parts Sabotaged . | . . . . Parts Stolen . | . . . . Parts Stripped . | . . . . Power Chain Reactions . | . . . . Alert | -11 -10 -10 -7 ------- Run | Yrd Mat Sub Rec Maximum Alert Level . | . . . . Low Security (%) 100 | 100 100 . 100 Level 1 . | . . . . Level 2 . | . . . . Level 3 . | . . . . Level 4 . | . . . . Level 5 . | . . . . High Security . | . . . . Max Security . | . . . . Peak Influence 30 | 10 30 . 19 Initial 19 | . . . 19 Average 3 | 1 3 . 11 Influence Increases 203 | 55 48 100 . Destroy 0b10 Robot/C 100 | . 40 60 . Destroy 0b10 Robot/NC 55 | 55 . . . Destroy Leader 10 | . . 10 . Successful Hack 8 | . 8 . . Lose Combat Pursuer 30 | . . 30 . Influence Decreases 203 | 55 48 60 40 Entered New Map 21 | . . . 21 Time Decay 142 | 55 48 30 9 Lost Part 40 | . . 30 10 Squads Dispatched . | . . . . Investigation . | . . . . Extermination . | . . . . Reinforcement . | . . . . Assault . | . . . . Garrison . | . . . . Intercept . | . . . . Searches Triggered . | . . . . Construction Impeded . | . . . . Haulers Reinforced . | . . . . Active Scanning Responses . | . . . . Cargo Convoy Interrupts . | . . . . Stealth | -11 -10 -10 -7 --------- Run | Yrd Mat Sub Rec Distress Signals 1 | . 1 . . Communications Jammed . | . . . . Distress Signals . | . . . . Times Spotted 17 | . 3 13 1 Peak Tracking Total 6 | . 3 6 2 Tactical Retreats 1 | . . 1 . Traps | -11 -10 -10 -7 ------- Run | Yrd Mat Sub Rec Traps Triggered . | . . . . Indirectly . | . . . . Trap Hack Attempts . | . . . . Triggered . | . . . . Disarmed . | . . . . Reprogrammed . | . . . . Reused . | . . . . Traps Extracted . | . . . . Installed . | . . . . Triggered . | . . . . Machines | -11 -10 -10 -7 ---------- Run | Yrd Mat Sub Rec Machines Disabled . | . . . . Max in Single Turn . | . . . . Machines Repaired . | . . . . Machines Dismantled . | . . . . Machines Sabotaged . | . . . . Overloaded Fab Kills . | . . . . Hacking | -11 -10 -10 -7 --------- Run | Yrd Mat Sub Rec Machines Accessed 1 | . 1 . . Terminals 1 | . 1 . . Fabricators . | . . . . Repair Stations . | . . . . Recycling Units . | . . . . Scanalyzers . | . . . . Garrison Access . | . . . . Total Hacks 2 | . 2 . . Successful 2 | . 2 . . Failed . | . . . . Catastrophic . | . . . . Database Lockouts . | . . . . Manual 9 | . 9 . . Terminals 2 | . 2 . . Fabricators . | . . . . Repair Stations . | . . . . Recycling Units . | . . . . Scanalyzers . | . . . . Garrison Access . | . . . . Terminal Hacks 1 | . 1 . . Branch Access Points 1 | . 1 . . Fabricator Hacks . | . . . . Repair Station Hacks . | . . . . Recycling Unit Hacks . | . . . . Scanalyzer . | . . . . Garrison Access Hacks . | . . . . Unauthorized Hacks 1 | . 1 . . Terminals 1 | . 1 . . Botnet 1 | . 1 . . Fabricators . | . . . . Repair Stations . | . . . . Recycling Units . | . . . . Scanalyzers . | . . . . Garrison Access . | . . . . Data Cores Recovered . | . . . . Used . | . . . . Hacking Detections 1 | . 1 . . Full Trace Events . | . . . . Feedback Events . | . . . . Feedback Blocked . | . . . . Robot Schematics Acquired . | . . . . Robots Built . | . . . . Authchips . | . . . . Time . | . . . . Total Robot Build Rating . | . . . . Part Schematics Acquired . | . . . . Parts Built . | . . . . Authchips . | . . . . Time . | . . . . Total Part Build Rating . | . . . . Part Studies Acquired . | . . . . Parts Repaired . | . . . . Time . | . . . . Parts Recycled . | . . . . Recycled Matter . | . . . . Retrieved Matter . | . . . . Retrieved Components . | . . . . Parts Scanalyzed . | . . . . Part Schematics Acquired . | . . . . Parts Damaged . | . . . . Bothacking | -11 -10 -10 -7 ------------ Run | Yrd Mat Sub Rec Used RIF Installer . | . . . . Robots Hacked . | . . . . Non-combat . | . . . . Combat . | . . . . Robot Hacks Applied . | . . . . Relay Couplers Released . | . . . . Fabnet Peak Effective % . | . . . . Robots Rewired . | . . . . Allies Hacked . | . . . . Hacks Repelled . | . . . . Allies | -11 -10 -10 -7 -------- Run | Yrd Mat Sub Rec Total Allies . | . . . . Largest Group . | . . . . Highest-Rated Group . | . . . . Highest-Rated Ally . | . . . . Total Orders . | . . . . Ally Attacks . | . . . . Total Damage . | . . . . Kills . | . . . . Allies Corrupted . | . . . . Allies Melted . | . . . . Intel | -11 -10 -10 -7 ------- Run | Yrd Mat Sub Rec Active Infowar (turns) 924 | 227 424 248 25 Terrain 924 | 227 424 248 25 Robot Analysis Total . | . . . . Derelict Logs Recovered . | . . . . Drone Launches . | . . . . Drone Recoveries . | . . . . Exploration | -11 -10 -10 -7 ------------- Run | Yrd Mat Sub Rec Turns Passed 1059 | 362 424 248 25 Spaces Moved 442 | 196 113 129 4 Core 3 | 3 . . . Treads 69 | 69 . . . Legs 278 | 124 113 37 4 Wheels 92 | . . 92 . Hover . | . . . . Flight . | . . . . Fastest Speed 50 | 50 120 80 120 Average Speed 118 | 133 120 93 137 Slowest Speed 190 | 160 120 190 190 Overloaded Moves . | . . . . Propulsion Burnouts . | . . . . Robots Hopped . | . . . . Potential Cave-ins . | . . . . Cave-ins Triggered . | . . . . Exploration Rate (%) 9 | 7 20 8 2 Regions Visited 3 Branch Regions 2 Pre-discovered Areas . | . . . . Known Exits Taken . | . . . . Unknown Exits Taken 3 | 1 1 1 . Scrap Searched . | . . . . Spaces Dug . | . . . . Terrain Destroyed . | . . . . Melee . | . . . . Projectile . | . . . . AOE . | . . . . Terrain Rammed . | . . . . Walls Destroyed . | . . . . Machines Disabled . | . . . . Actions | -11 -10 -10 -7 --------- Run | Yrd Mat Sub Rec Total 820 | 245 378 182 15 Wait 253 | . 251 2 . Move 439 | 195 112 128 4 Hop . | . . . . Pick Up 16 | 11 1 4 . Fast Attach 7 | 7 . . . Attach 8 | . . 4 4 Detach . | . . . . Swap 14 | 2 . 11 1 Drop 6 | 3 1 2 . Fire 75 | 27 13 29 6 Melee . | . . . . Ram . | . . . . Kick . | . . . . Crush . | . . . . Escape Stasis . | . . . . Rewire 2 | . . 2 . Trap . | . . . . Miscellaneous . | . . . . Route ------- -11/Scrapyard -10/Materials (discovered 3 exits: Min x2 / [*Sub]) -10/Subcaves -7/Recycling History --------- Turn | Location | Event 15 | -11/Scrapyard | Discovered new exit (range 15) 363 | -11/Scrapyard | Entered Materials 376 | -10/Materials | Build established: Mutant 493 | -10/Materials | Identified exit to Mines 677 | -10/Materials | Discovered new exit (range 8) 787 | -10/Materials | Entered Subcaves 901 | -10/Subcaves | Discovered new exit (range 11) 973 | -10/Subcaves | Core integrity fell below 50% 1033 | -10/Subcaves | Core integrity fell below 20% 1035 | -10/Subcaves | Entered Recycling 1036 | -7/Recycling | Met a Zionite searching for Scraptown 1060 | -7/Recycling | Destroyed by Y-54 Guardian with Flak Gun Last Messages --------------- 01013_ Attempting to rewire WL-BFP(O). 01013_ WL-BFP(O) is unpowered. 01014_ Attempting to rewire WL-BFP(O). 01014_ WL-BFP(O) is unpowered. 01026_ S-10 Pest springs to life. 01030_ Assault Rifle destroyed. 01031_ Wheel destroyed. LOCATION=UNKNOWN GOAL=ESCAPE 01036_ JM-8ZP(z): "You there! You wouldn't happen to know where Scraptown is, do you?" 01037_ JM-8ZP(z): "I've heard great things about that place, but almost no one seems to know where to find it, only that you access it somewhere from Recycling here." 01038_ JM-8ZP(z): "Anyway I've been here searching too long already, time to slink back to the caves before I'm caught. You'd best do the same." 01040_ Y-54 Guardian springs to life. 01046_ Lgt. Assault Rifle destroyed. 01056_ Aluminum Leg destroyed. 01060_ Mining Laser destroyed. Map ----- +----------------------------------------------------+ | ?????????????????????????????????????????????????? | | ?????????????????????????????????????????????????? | | ?????????????????????????????????????????????????? | | ?????????????????????????????????????????????????? | | ?????????????????????????????????????????????????? | | ?????????????????????????????????????????????????? | | ?????????????????????????????????????????????????? | | ?????????????????????????????????????????????????? | | ?????????????????????????????????????????????????? | | ?????????????????????????????????????????????????? | | ?????????????????????????????????????????????????? | | ?????????????????????????????????????????????????? | | ?????????????????????????????????????????????????? | | ?????????????????????????????????????????????????? | | ?????????????????????????? ??????????????????????? | | ?????????????????????????????????????????????????? | | ??????????????????????????????#??????????????????? | | ????????????????????####????????????#????????????? | | ????????????????????#"""?????????????????????????? | | ?????????????????????"Y"#####????????????????????? | | ?????????????????????? #????????????????????? | | ??????????????#???????? #????????????????????? | | ???????????????????????? ###??????????????????? | | ????????????????????????# ""#??????????????????? | | ????????????????????????# Y"#??????????????????? | | ????????????????????????#@ ""#??????????????????? | | ???????????????????????##Y ###??????????????????? | | ???????????????????????# #????????????????????? | | ??????????????????? ???## #????????????????????? | | ????????????????????????# #????????????????????? | | ????????????????????????#####????????????#???????? | | ???????????????????????????#?????????????????????? | | ?????????????????????????????????????????????????? | | ?????????????????????????#??????#????????????????? | | ????????????????????????????#????????????????????? | | ??????????????????????????#??????????????????????? | | ???????????????????????????#?????????????????????? | | ?????????????????????????????????????????????????? | | ???????????????????????????#?????????????????????? | | ?????????????????????????#???????????????????????? | | ?????????????????????????????????????????????????? | | ?????????????????????????????????????????????????? | | ?????????????????????????????????????????????????? | | ?????????????????????????????????????????????????? | | ?????????????????????????????????????????????????? | | | | | | | | | | | +----------------------------------------------------+ Best States ------------- Heat Dissipation 25 Energy Generation 10 Energy Capacity 250 Matter Stores 300 Matter Capacity 300 Sight Range 16 Terrain Scan Range 16 Terrain Scan Density 10 Evasion (%) 55 Recoil Reduction 2 Item Schematics ----------------- None Robot Schematics ------------------ None Fabricated ------------ Nothing Repaired ---------- Nothing Studied --------- None Alien Tech Used ----------------- None Achievements -------------- None Challenges ------------ None Game ------ Seed SuperquantumMetafiberShovel Manual? 0 Play Time 00:15:46 Cumulative 36.9 hours Start 2026.07.23 @ 17:28:02 End 2026.07.23 @ 17:43:39 Sessions 1 Manual Loads 0 Difficulty Rogue Special Mode None Game No. 20 Rogue 20 Adventurer 0 Explorer 0 Win Type - Total 0 Types 0/0/0/0/0/0/0/0/0/0 Lore% 14 Gallery% 29 Achievement% 16 Wizard Run 0 Options --------- Layout 0 ASCII 0 Keyboard 0 Movement Mouse Keybinds 0 Fullscreen 2 Font 24/Smallcaps Map View 76x50 Zoom Use 0% Tactical HUD 1 Map Filters NONE Filters NONE Steam 1 RUN: 289ce004-8b8e-4f85-bff8-dfb759cb575a